bitfinex/quotes_SOLUSD_20250710
["timestamp","ask_amount","ask_price","bid_price","bid_amount"]
[1752172811149,26.0,158.49,158.41,0.71]
[1752172811324,0.59,158.51,158.41,0.71]
[1752172811519,2.26323771,158.5,158.42,34.22]
[1752172811730,0.59,158.49,158.36,0.71]
[1752172811946,0.59,158.49,158.37,34.2]
[1752172811947,2.26323771,158.48,158.37,34.2]
[1752172812140,26.0,158.45,158.36,0.71]
[1752172812361,3.11461499,158.44,158.37,34.22]
[1752172812548,0.59,158.43,158.38,34.22]
[1752172812745,26.59,158.42,158.35,1.5938]
[1752172812964,0.59,158.41,158.33,0.71]
[1752172813343,0.59,158.41,158.34,34.2]
[1752172813858,8.83564916,158.45,158.35,0.71]
[1752172813859,26.59,158.45,158.35,0.71]
[1752172814062,0.59,158.51,158.39,10.2434352]
[1752172814363,2.25306387,158.5,158.41,0.42648471]
[1752172814535,2.25306387,158.49,158.42,0.71]
[1752172814734,2.25306387,158.48,158.42,10.66911206]
[1752172814934,0.59,158.55,158.44,26.74379603]
[1752172815143,2.24850543,158.54,158.46,16.78468397]
[1752172815343,0.59,158.57,158.47,34.89]
[1752172815543,2.24635116,158.56,158.48,0.71]
[1752172815857,2.24635116,158.56,158.48,89.71]
[1752172816052,1.89143181,158.61,158.5,18.36078397]
[1752172816241,2.24612757,158.6,158.51,0.71]
[1752172816643,1.89144549,158.61,158.51,0.71]
[1752172816854,2.48136432,158.62,158.51,0.71]
[1752172817174,2.48136432,158.62,158.51,14.967515]
[1752172817345,2.48136432,158.62,158.51,21.044915]
[1752172817546,2.48136432,158.62,158.52,0.71]
[1752172817752,2.48136432,158.62,158.53,34.14]
[1752172818087,2.48136432,158.62,158.54,0.71]
[1752172818438,26.0,158.61,158.54,0.71]
[1752172819779,1.89122025,158.63,158.54,0.71]
[1752172820374,0.03,158.56,158.54,0.71]
[1752172821085,0.03,158.56,158.55,0.71]
[1752172821288,0.03,158.56,158.55,34.79]
[1752172821491,0.03,158.56,158.55,34.77]
[1752172822580,0.59,158.67,158.56,16.78468397]
[1752172822786,26.0,158.65,158.57,0.71]
[1752172822990,1.89047829,158.69,158.6,14.257515]
[1752172823153,1.89047829,158.69,158.61,34.75]
[1752172823353,26.0,158.68,158.62,0.71]
[1752172823761,1.89047829,158.69,158.62,0.71]
[1752172823762,7.23667401,158.69,158.62,0.71]
[1752172823968,33.23667401,158.69,158.62,0.71]
[1752172825657,27.89047829,158.69,158.62,0.71]
[1752172828969,26.0,158.69,158.63,6.2153]
[1752172829273,27.89048264,158.69,158.64,0.72]
[1752172829788,27.89048264,158.69,158.63,6.2153]
[1752172829789,28.51048264,158.69,158.63,6.2153]
[1752172829993,26.0,158.68,158.63,6.2153]
[1752172830287,1.89038187,158.7,158.64,0.72]
[1752172830479,1.89027072,158.71,158.64,0.72]
[1752172832764,2.09013846,158.72,158.64,0.72]
[1752172832965,0.2,158.72,158.66,0.28432314]
[1752172833167,0.2,158.72,158.67,34.62]
[1752172833471,0.2,158.72,158.68,0.72]
[1752172835465,2.71013504,158.72,158.69,34.04]
[1752172836497,2.71013504,158.72,158.7,34.02]
[1752172837190,0.62,158.71,158.7,34.02]
[1752172837390,2.09013504,158.72,158.7,34.02]
[1752172837573,0.2,158.72,158.71,0.72]
[1752172837782,0.2,158.72,158.71,2.3794]
[1752172837965,0.2,158.72,158.71,8.7664]
[1752172840194,0.2,158.72,158.71,8.0464]
[1752172842386,0.2,158.72,158.71,8.7664]
[1752172842577,0.2,158.72,158.71,97.7664]
[1752172845090,0.03,158.78,158.72,17.06900711]
[1752172845294,0.03,158.78,158.73,45.25757907]
[1752172845475,0.03,158.78,158.74,17.21116868]
[1752172845797,0.03,158.78,158.76,16.78468397]
[1752172845986,0.03,158.78,158.77,33.94]
[1752172846186,0.03,158.78,158.77,34.66]
[1752172848181,0.03,158.78,158.77,51.44468397]
[1752172848571,0.03,158.78,158.77,140.87116868]
[1752172850011,0.03,158.78,158.77,140.44468397]
[1752172851501,0.03,158.78,158.77,140.34468397]
[1752172854005,0.03,158.78,158.77,51.34468397]
[1752172855902,0.03,158.78,158.77,51.77116868]
[1752172856319,0.03,158.78,158.77,59.84996868]
[1752172857326,0.03,158.78,158.77,59.74996868]
[1752172859293,0.03,158.78,158.77,8.0788]
[1752172859527,0.03,158.78,158.77,41.7788]
[1752172859704,0.03,158.78,158.77,42.4488]
[1752172860605,0.03,158.78,158.77,35.3009]
[1752172860820,26.65,158.78,158.72,89.0]
[1752172861032,1.88976377,158.75,158.7,89.0]
[1752172861210,26.0,158.76,158.71,33.68]
[1752172861211,2.25925768,158.74,158.71,33.68]
[1752172861415,2.25925768,158.73,158.71,122.68]
[1752172861727,2.50968609,158.76,158.71,122.68]
[1752172861942,2.26515863,158.75,158.71,122.68]
[1752172862244,2.26515863,158.75,158.71,89.0]
[1752172862560,2.88515863,158.75,158.72,33.68]
[1752172862709,2.26515863,158.74,158.72,33.68]
[1752172862914,2.26515863,158.74,158.72,33.74]
[1752172864125,2.88515863,158.74,158.72,0.06]
[1752172864338,2.88515863,158.73,158.68,1.5257]
[1752172864629,2.88515863,158.73,158.69,33.64]
[1752172864630,2.88515863,158.72,158.69,33.64]
[1752172864829,2.88515863,158.71,158.7,33.66]
[1752172865035,2.88515863,158.71,158.64,1.5257]
[1752172865335,2.26515863,158.7,158.64,2.1957]
[1752172866315,0.62,158.69,158.65,33.66]
[1752172866518,0.62,158.69,158.61,0.67]
[1752172866519,2.88515863,158.68,158.61,0.67]
[1752172866722,2.88515863,158.67,158.64,33.64]
[1752172866939,2.26515863,158.66,158.6,2.3264]
[1752172867116,2.26515863,158.66,158.64,33.64]
[1752172867552,2.26515863,158.65,158.64,33.64]
[1752172867757,0.62,158.65,158.6,1.6564]
[1752172868044,2.88515863,158.64,158.56,7.1184]
[1752172868253,2.26515863,158.63,158.56,7.1184]
[1752172868453,2.26515863,158.63,158.56,6.4484]
[1752172868454,2.26515863,158.62,158.56,6.4484]
[1752172869034,2.26515863,158.62,158.57,33.64]
[1752172869267,26.0,158.61,158.57,34.31]
[1752172869566,2.26515863,158.6,158.58,33.66]
[1752172869943,2.26515863,158.6,158.59,33.66]
[1752172870146,2.26515863,158.62,158.59,33.66]
[1752172870363,2.26515863,158.61,158.59,33.66]
[1752172870671,2.26515863,158.6,158.59,33.66]
[1752172871747,2.26515863,158.6,158.59,34.33]
[1752172871988,16.78468397,158.66,158.57,0.67]
[1752172872176,0.62,158.61,158.56,0.1]
[1752172872475,0.62,158.61,158.56,0.06539562]
[1752172872476,2.27064358,158.6,158.56,0.06539562]
[1752172872768,26.0,158.58,158.56,0.06539562]
[1752172873066,2.27064358,158.57,158.56,0.06539562]
[1752172873356,2.89064358,158.57,158.56,0.06539562]
[1752172873969,2.89064358,158.57,158.56,33.70539562]
[1752172874270,26.0,158.58,158.56,33.70539562]
[1752172874476,26.62,158.6,158.56,33.70539562]
[1752172875144,2.51108832,158.64,158.57,0.67]
[1752172875453,26.0,158.62,158.57,0.67]
[1752172875637,1.89108832,158.64,158.57,0.67]
[1752172875852,26.62,158.62,158.57,0.67]
[1752172877173,27.89138825,158.62,158.57,0.67]
[1752172877388,28.51138825,158.62,158.57,0.67]
[1752172877885,0.62,158.61,158.56,33.70539562]
[1752172878288,0.62,158.6,158.56,0.06539562]
[1752172878463,27.89138825,158.62,158.57,33.62]
[1752172878657,28.51138825,158.62,158.57,34.29]
[1752172879159,28.51138825,158.62,158.57,33.62]
[1752172879559,28.51138825,158.62,158.57,34.29]
[1752172880070,26.0,158.62,158.58,0.67]
[1752172880256,2.51080756,158.67,158.59,0.67]
[1752172880576,2.51080756,158.67,158.6,33.64]
[1752172880766,26.0,158.64,158.6,33.64]
[1752172880965,0.62,158.63,158.6,33.64]
[1752172881682,2.511251,158.63,158.6,33.64]
[1752172882091,26.0,158.67,158.6,33.64]
[1752172882382,27.89072058,158.67,158.61,0.67]
[1752172883167,40.63532812,158.67,158.61,0.67]
[1752172883379,26.0,158.64,158.61,0.67]
[1752172883786,26.0,158.64,158.62,0.67]
[1752172883971,26.0,158.64,158.63,33.64]
[1752172885293,26.03,158.64,158.63,33.64]
[1752172885897,0.03,158.64,158.63,33.64]
[1752172887304,26.03,158.64,158.63,33.64]
[1752172889601,26.03,158.64,158.63,34.3]
[1752172889900,26.03,158.64,158.63,123.3]
[1752172890281,0.03,158.64,158.63,123.3]
[1752172892484,0.03,158.64,158.63,34.3]
[1752172893099,1.88992753,158.74,158.64,16.78468397]
[1752172893395,2.26023406,158.73,158.66,17.21116868]
[1752172893602,12.77166299,158.74,158.67,34.28]
[1752172893809,0.62,158.77,158.68,0.66]
[1752172893810,28.50953756,158.77,158.68,0.66]
[1752172893978,0.03,158.78,158.7,6.0863]
[1752172893979,2.26049016,158.76,158.7,6.0863]
[1752172894178,2.53943671,158.78,158.71,33.62]
[1752172894179,5.66834927,158.78,158.71,33.62]
[1752172894410,2.88077635,158.77,158.7,6.0863]
[1752172894615,2.88077635,158.76,158.72,33.62]
[1752172894807,6.64295352,158.78,158.72,33.62]
[1752172894974,26.62,158.75,158.72,33.62]
[1752172895603,27.88985222,158.75,158.72,33.62]
[1752172895784,28.50985222,158.75,158.72,33.62]
[1752172895984,27.88985222,158.75,158.72,33.62]
[1752172896807,28.50985222,158.75,158.72,33.62]
[1752172897098,28.50985222,158.75,158.7,6.0863]
[1752172897306,28.88365161,158.74,158.67,0.66]
[1752172897511,26.0,158.71,158.65,2.2099]
[1752172897808,26.0,158.69,158.66,33.62]
[1752172899294,26.0,158.69,158.66,34.28]
[1752172901413,26.0,158.67,158.66,33.62]
[1752172901709,28.26658261,158.67,158.66,33.62]
[1752172901884,26.0,158.67,158.66,33.62]
[1752172902081,27.89036133,158.7,158.66,34.28]
[1752172902304,2.26883614,158.69,158.66,34.28]
[1752172902618,26.0,158.7,158.67,0.66]
[1752172902787,6.41664254,158.73,158.68,0.66]
[1752172902788,26.0,158.71,158.68,0.66]
[1752172902983,26.0,158.71,158.66,33.62]
[1752172902984,26.0,158.71,158.69,34.28]
[1752172903306,1.88992245,158.74,158.7,0.66]
[1752172903493,2.27081268,158.73,158.71,0.66]
[1752172903689,2.27081268,158.73,158.69,33.62]
[1752172903690,2.27081268,158.73,158.72,33.62]
[1752172903881,2.271684,158.73,158.72,33.62]
[1752172905016,2.27456019,158.73,158.72,33.62]
[1752172906225,2.27456019,158.73,158.72,34.28]
[1752172906526,2.27456019,158.73,158.72,33.62]
[1752172907032,2.27456019,158.73,158.66,6.8987]
[1752172907033,35.5095668,158.73,158.66,6.8987]
[1752172907237,26.0,158.7,158.66,6.2387]
[1752172907528,2.27456019,158.69,158.66,6.2387]
[1752172907709,2.27456019,158.69,158.66,6.8987]
[1752172907909,2.27409443,158.68,158.66,6.8987]
[1752172908227,1.89024006,158.71,158.67,33.6]
[1752172908399,2.27449677,158.7,158.67,33.6]
[1752172908709,2.27449677,158.7,158.68,0.66]
[1752172908710,28.27449677,158.7,158.68,0.66]
[1752172908913,2.27449677,158.69,158.67,33.6]
[1752172909433,1.89013519,158.72,158.68,0.66]
[1752172909732,2.27560686,158.71,158.69,33.6]
[1752172910125,2.27560686,158.71,158.69,34.26]
[1752172910931,0.03,158.73,158.7,0.66]
[1752172911234,2.3054609,158.73,158.7,0.66]
[1752172911534,28.3054609,158.73,158.7,0.66]
[1752172911707,2.2754609,158.72,158.7,0.66]
[1752172916358,26.0,158.7,158.66,95.2387]
[1752172916525,0.62,158.69,158.65,1.5499]
[1752172916730,0.62,158.68,158.65,1.5499]
[1752172916931,2.272416,158.67,158.66,33.6]
[1752172917146,26.0,158.7,158.66,34.26]
[1752172917331,4.16359574,158.69,158.66,34.26]
[1752172917532,2.27311142,158.68,158.66,34.26]
[1752172918952,2.27311142,158.68,158.66,33.6]
[1752172919158,4.16378915,158.68,158.65,1.5499]
[1752172919463,28.27311142,158.67,158.66,33.6]
[1752172919746,2.89311142,158.67,158.66,33.6]
[1752172919951,2.89311142,158.67,158.63,0.06]
[1752172920150,2.27311142,158.66,158.63,0.06]
[1752172920339,28.27311142,158.66,158.63,0.06]
[1752172920535,2.27311142,158.65,158.63,0.06]
[1752172920737,1.89067773,158.68,158.63,0.06]
[1752172920738,26.0,158.68,158.64,0.71]
[1752172920928,2.27370431,158.67,158.65,0.71]
[1752172921132,0.03,158.73,158.66,33.58]
[1752172921361,0.03,158.73,158.68,8.069]
[1752172921658,2.30378772,158.73,158.69,33.6]
[1752172921847,2.30378772,158.73,158.7,0.71]
[1752172922158,2.27378772,158.72,158.71,0.71]
[1752172922544,0.03,158.73,158.71,0.71]
[1752172922759,0.03,158.73,158.72,34.31]
[1752172923636,2.30378772,158.73,158.72,34.31]
[1752172924356,2.30378772,158.73,158.72,33.6]
[1752172925162,2.30378772,158.73,158.7,0.57091723]
[1752172925364,2.30378772,158.73,158.68,97.069]
[1752172925656,2.30378772,158.73,158.68,97.69919914]
[1752172926457,2.30378772,158.73,158.69,33.58]
[1752172926656,4.89381348,158.73,158.68,97.069]
[1752172926839,2.97378772,158.72,158.69,33.58]
[1752172927034,2.27378772,158.71,158.69,33.58]
[1752172927863,2.27378772,158.7,158.69,33.58]
[1752172928033,2.27378772,158.7,158.69,34.29]
[1752172928455,2.27378772,158.71,158.69,34.29]
[1752172930131,2.27378772,158.7,158.69,34.29]
[1752172930531,1.92001538,158.73,158.69,34.29]
[1752172930532,0.03,158.71,158.69,34.29]
[1752172931266,2.30378772,158.71,158.69,34.29]
[1752172931449,2.30378772,158.71,158.69,33.58]
[1752172931971,2.30378772,158.71,158.7,33.58]
[1752172933662,4.19402778,158.71,158.7,33.58]
[1752172934053,2.30378772,158.71,158.7,33.58]
[1752172934254,4.19402778,158.71,158.7,33.58]
[1752172936747,2.30378772,158.71,158.7,33.58]
[1752172937246,4.19402778,158.71,158.7,33.58]
[1752172938673,26.0,158.69,158.68,90.64]
[1752172938874,28.27378772,158.69,158.66,0.71]
[1752172939061,2.27378772,158.68,158.67,33.56]
[1752172939374,2.27378772,158.68,158.64,97.3525]
[1752172939595,2.27378772,158.67,158.65,0.71]
[1752172939761,2.27378772,158.66,158.65,33.56]
[1752172939958,26.0,158.7,158.65,33.56]
[1752172939959,2.27378772,158.69,158.65,33.56]
[1752172940273,26.0,158.7,158.65,33.56]
[1752172940274,2.27378772,158.68,158.66,0.71]
[1752172940469,7.34584021,158.71,158.67,34.27]
[1752172940470,26.03,158.71,158.67,34.27]
[1752172940677,2.28495972,158.7,158.68,34.27]
[1752172940844,2.28495972,158.69,158.68,34.27]
[1752172941958,27.92028306,158.71,158.68,34.27]
[1752172942166,2.28493514,158.7,158.68,34.27]
[1752172942467,2.2850147,158.69,158.68,34.27]
[1752172943790,4.17549846,158.69,158.65,0.71]
[1752172943996,2.2850147,158.68,158.65,0.71]
[1752172944298,2.2850147,158.67,158.66,0.71]
[1752172944604,2.2850147,158.67,158.64,96.6425]
[1752172944796,2.2850147,158.66,158.64,96.6425]
[1752172944992,28.62025782,158.71,158.65,33.56]
[1752172945193,2.28488468,158.7,158.65,122.56]
[1752172945389,2.28488468,158.69,158.66,0.71]
[1752172945707,1.89037305,158.7,158.65,122.56]
[1752172945708,2.28488468,158.68,158.67,34.27]
[1752172946919,2.28488468,158.68,158.67,33.56]
[1752172947126,2.28488468,158.68,158.67,34.27]
[1752172949536,2.28488468,158.68,158.67,33.56]
[1752172950916,2.28488468,158.68,158.67,34.21]
[1752172952535,4.1754821,158.68,158.67,33.56]
[1752172952715,2.28488468,158.68,158.67,33.56]
[1752172953044,2.28488468,158.68,158.66,0.06]
[1752172953050,26.0,158.67,158.66,0.06]
[1752172953353,28.98488468,158.67,158.66,33.6]
[1752172953831,26.7,158.67,158.66,33.6]
[1752172954126,28.98443675,158.67,158.66,33.6]
[1752172954637,30.87515333,158.67,158.66,33.6]
[1752172954838,30.17515333,158.67,158.66,33.6]
[1752172955046,30.17515333,158.67,158.66,0.06]
[1752172955338,30.17515333,158.67,158.66,33.6]
[1752172956748,30.87515333,158.67,158.66,33.6]
[1752172958216,30.87515333,158.67,158.66,0.06]
[1752172958431,30.87515333,158.67,158.66,33.6]
[1752172960149,30.17515333,158.67,158.66,33.6]
[1752172960643,28.28443675,158.67,158.66,33.6]
[1752172960946,2.28443675,158.67,158.66,34.25]
[1752172961447,2.28443675,158.69,158.66,34.25]
[1752172961752,2.28443675,158.68,158.67,0.65]
[1752172961922,2.28443675,158.69,158.67,0.65]
[1752172962129,2.28443675,158.68,158.66,0.06]
[1752172962332,2.28443675,158.68,158.67,33.54]
[1752172962745,2.2816234,158.68,158.67,33.54]
[1752172963031,2.2816234,158.68,158.66,0.06]
[1752172963255,2.2816234,158.67,158.66,0.06]
[1752172963437,2.2816234,158.67,158.66,33.6]
[1752172964860,2.2816234,158.67,158.66,34.25]
[1752172965737,2.28158669,158.67,158.66,34.25]
[1752172966461,0.13158669,158.67,158.66,42.60742314]
[1752172966646,0.03,158.71,158.66,60.02238569]
[1752172966852,0.03,158.71,158.66,58.74210711]
[1752172967968,0.73,158.71,158.67,33.52]
[1752172968167,2.59037913,158.7,158.66,8.1331]
[1752172968462,0.7,158.7,158.68,33.52]
[1752172968662,1.92027425,158.71,158.68,33.52]
[1752172968867,0.7,158.69,158.68,33.52]
[1752172971240,26.03,158.71,158.68,33.52]
[1752172971846,0.03,158.71,158.68,33.52]
[1752172972652,0.03,158.71,158.68,122.52]
[1752172980558,0.03,158.71,158.69,17.21116868]
[1752172980756,0.03,158.71,158.7,35.0588]
[1752172980961,0.03,158.71,158.7,124.0588]
[1752172983486,0.03,158.71,158.7,141.26996868]
[1752172983779,0.03,158.73,158.71,106.18116868]
[1752172983954,0.03,158.73,158.72,57.11116868]
[1752172984575,0.03,158.73,158.72,57.741209]
[1752172987357,0.03,158.73,158.72,293.011209]
[1752172987666,0.03,158.73,158.72,292.38116868]
[1752172990261,0.03,158.73,158.72,235.27]
[1752172990475,0.03,158.73,158.72,268.73]
[1752172991958,0.03,158.73,158.72,235.27]
[1752172992370,0.03,158.73,158.72,268.73]
[1752172993192,0.03,158.73,158.72,235.27]
[1752172993382,0.03,158.73,158.72,122.43]
[1752172994484,0.03,158.78,158.75,17.21116868]
[1752172994683,0.03,158.78,158.76,33.44]
[1752172994982,0.03,158.78,158.76,122.38]
[1752172996882,0.03,158.78,158.77,18.77606868]
[1752172997062,0.2,158.8,158.77,24.77486189]
[1752172997389,0.2,158.8,158.79,23.20996189]
[1752172997560,0.2,158.8,158.79,163.51116868]
[1752172997762,26.0,158.86,158.81,0.14216157]
[1752172997965,0.2,158.87,158.84,0.42648471]
[1752172998181,0.2,158.87,158.85,33.44]
[1752172998487,0.2,158.87,158.85,122.38]
[1752173000000,0.2,158.87,158.86,25.73285376]
[1752173000178,0.2,158.87,158.86,260.97285376]
[1752173000380,0.2,158.87,158.86,260.34336868]
[1752173000590,0.2,158.87,158.86,243.1322]
[1752173000773,0.2,158.87,158.86,236.8205]
[1752173000973,0.86,158.87,158.86,235.24]
[1752173001213,0.86,158.87,158.86,122.36]
[1752173002403,0.2,158.87,158.86,122.36]
[1752173002599,0.2,158.87,158.86,50.63116868]
[1752173003201,0.2,158.88,158.87,8.05032314]
[1752173005590,0.2,158.88,158.87,41.166]
[1752173006401,0.2,158.88,158.87,7.766]
[1752173006598,0.2,158.88,158.87,41.166]
[1752173006807,0.2,158.88,158.87,7.766]
[1752173007001,0.2,158.88,158.87,41.166]
[1752173008874,0.2,158.88,158.85,89.85384784]
[1752173008875,0.86,158.88,158.85,88.94]
[1752173009104,0.86,158.88,158.78,26.0]
[1752173009105,2.74821752,158.88,158.79,1.617]
[1752173009316,26.0,158.87,158.79,1.617]
[1752173009506,26.66,158.86,158.8,33.52]
[1752173009688,0.66,158.85,158.8,33.52]
[1752173010005,0.66,158.84,158.8,33.52]
[1752173010191,0.66,158.83,158.8,33.52]
[1752173010395,0.66,158.82,158.8,33.52]
[1752173010698,0.66,158.82,158.79,1.617]
[1752173010927,0.66,158.82,158.8,33.52]
[1752173011417,0.66,158.82,158.81,33.5]
[1752173012004,0.66,158.82,158.75,28.7982]
[1752173012211,0.66,158.82,158.76,33.5]
[1752173012514,2.54897723,158.82,158.76,33.5]
[1752173012711,1.88897723,158.82,158.76,33.5]
[1752173012914,26.0,158.85,158.77,16.78468397]
[1752173013119,0.66,158.83,158.78,33.5]
[1752173013425,0.66,158.85,158.79,17.21116868]
[1752173013613,0.66,158.85,158.8,33.48]
[1752173013998,0.66,158.84,158.8,33.48]
[1752173017524,0.66,158.83,158.8,33.48]
[1752173017692,0.66,158.83,158.8,33.54]
[1752173018395,0.66,158.86,158.8,33.54]
[1752173018926,0.66,158.86,158.81,0.42648471]
[1752173019099,0.66,158.86,158.82,33.42]
[1752173019606,0.66,158.85,158.82,33.42]
[1752173020020,0.69,158.87,158.82,33.42]
[1752173020225,0.66,158.86,158.82,33.42]
[1752173021422,0.03,158.87,158.82,33.42]
[1752173021614,0.66,158.85,158.82,33.42]
[1752173022307,0.66,158.84,158.8,235.3]
[1752173022505,0.66,158.84,158.8,0.06]
[1752173022709,26.66,158.84,158.81,33.4]
[1752173022911,26.66,158.84,158.8,0.06]
[1752173022912,0.66,158.83,158.8,0.06]
[1752173023130,1.88893086,158.82,158.81,33.4]
[1752173023307,28.54893086,158.82,158.75,27.18]
[1752173023626,26.0,158.8,158.75,27.18]
[1752173023829,0.66,158.79,158.75,27.18]
[1752173024421,0.66,158.79,158.76,33.4]
[1752173024628,0.66,158.78,158.76,33.4]
[1752173024818,0.66,158.8,158.76,33.4]
[1752173025013,0.66,158.79,158.76,33.4]
[1752173025333,0.66,158.81,158.76,33.4]
[1752173025840,0.66,158.81,158.76,122.34]
[1752173027926,0.66,158.83,158.76,122.34]
[1752173028111,0.66,158.83,158.76,179.7]
[1752173028330,0.66,158.83,158.77,33.4]
[1752173029933,2.54882546,158.83,158.77,33.4]
[1752173030135,0.66,158.82,158.77,33.4]
[1752173030317,4.5519615,158.81,158.77,33.4]
[1752173030519,0.66,158.8,158.77,33.4]
[1752173031938,0.66,158.8,158.77,122.4]
[1752173032510,0.66,158.83,158.77,122.4]
[1752173032712,26.0,158.8,158.77,122.4]
[1752173033738,26.66,158.84,158.77,129.0367]
[1752173034038,26.0,158.81,158.77,129.0367]
[1752173034213,0.66,158.84,158.77,129.0367]
[1752173034415,26.0,158.8,158.77,89.0]
[1752173034627,0.66,158.79,158.78,34.24]
[1752173034802,5.2140419,158.79,158.75,116.18]
[1752173035002,4.5540419,158.78,158.75,116.18]
[1752173035229,0.66,158.77,158.75,116.18]
[1752173035606,0.66,158.76,158.75,116.18]
[1752173036045,0.66,158.76,158.75,150.42]
[1752173036414,0.66,158.78,158.75,150.4]
[1752173036628,0.66,158.77,158.75,150.4]
[1752173037435,0.66,158.77,158.76,34.22]
[1752173037744,0.66,158.77,158.75,116.18]
[1752173038046,0.66,158.77,158.76,34.22]
[1752173038348,27.88920418,158.8,158.76,34.22]
[1752173038349,0.72,158.79,158.76,34.22]
[1752173038550,5.28024904,158.78,158.76,34.22]
[1752173038852,0.72,158.78,158.76,34.22]
[1752173039149,0.72,158.8,158.76,34.22]
[1752173039449,5.28178749,158.79,158.76,34.22]
[1752173039622,0.72,158.78,158.76,34.22]
[1752173040751,0.72,158.77,158.76,89.0]
[1752173040924,0.72,158.77,158.76,123.18]
[1752173041325,5.28169469,158.77,158.76,123.18]
[1752173041823,5.28169469,158.77,158.76,89.0]
[1752173042047,5.28169469,158.77,158.76,123.18]
[1752173042354,0.72,158.77,158.76,123.18]
[1752173044256,0.72,158.79,158.76,123.12]
[1752173044431,0.03,158.81,158.76,123.12]
[1752173044432,0.75,158.81,158.76,123.12]
[1752173044631,5.27999937,158.8,158.76,123.12]
[1752173044833,5.27999937,158.79,158.76,89.0]
[1752173045032,0.72,158.78,158.77,34.1]
[1752173046229,0.72,158.78,158.76,89.0]
[1752173046551,0.72,158.78,158.77,34.08]
[1752173047049,4.55999612,158.8,158.77,34.08]
[1752173047050,26.75,158.81,158.77,34.08]
[1752173047231,5.27938412,158.8,158.77,34.08]
[1752173047431,4.55938412,158.79,158.77,34.08]
[1752173047649,0.03,158.81,158.77,34.08]
[1752173048054,0.75,158.81,158.77,34.08]
[1752173048235,4.55966018,158.8,158.77,34.08]
[1752173049550,0.72,158.79,158.76,89.0]
[1752173049732,0.72,158.79,158.77,34.04]
[1752173050060,0.72,158.79,158.78,34.04]
[1752173050355,0.72,158.79,158.76,89.0]
[1752173050657,28.60932618,158.79,158.76,89.0]
[1752173050853,5.28397508,158.78,158.76,89.0]
[1752173051041,27.88932618,158.79,158.76,89.0]
[1752173051239,4.56430891,158.78,158.76,89.0]
[1752173051554,0.75,158.81,158.77,34.0]
[1752173051869,5.28744364,158.8,158.77,34.0]
[1752173052053,4.56744364,158.79,158.77,34.0]
[1752173052557,5.28744364,158.79,158.77,34.0]
[1752173052732,5.28919114,158.78,158.77,34.0]
[1752173052937,0.72,158.8,158.77,34.0]
[1752173053140,4.56912535,158.79,158.77,34.0]
[1752173054238,4.56912535,158.78,158.77,34.0]
[1752173054435,4.56912535,158.8,158.77,34.0]
[1752173054857,4.57263689,158.79,158.77,34.0]